Cogmind - Beta 15 @@@ ROGUE MODE // 2025.09.03 @ 21:35:10 Player: celerysam Result: Destroyed by FY-0A8(R) with Subdweller Laser Performance ------------- Evolutions (0) 0 Regions Visited (2) 400 Robots Destroyed (11) 55 Value Destroyed (389) 389 Prototype IDs (0) 0 Alien Tech Used (0) 0 Bonus (-13) -13 TOTAL SCORE: 831 Bonus ------- Friendly Fire -13 Cogmind --------- Core Integrity 0/250 Matter 229/300 Energy 81/250 System Corruption 4% Temperature Cool (6) Movement Rolling (130) Ox2 Location -10/Subcaves Parts ------- > --- POWER (1) -------- Ion Engine > --- PROPULSION (2) --- Compact Wheel Compact Wheel > --- UTILITY (2) ------ Disposable Heat Sink Huge Storage Unit > --- WEAPON (2) ------- Spread Laser > --- INVENTORY (25) --- Light Ion Engine Subdweller Power Source Makeshift Power Source Improved Treads Improved Treads Improved Treads Wheel Wheel Wheel Improved Hover Unit Improved Hover Unit Improved Hover Unit Improved Hover Unit Heat Sink Disposable Heat Sink Small Storage Unit ECM Suite Medium Laser Spread Laser Grenade Launcher Plasma Cutter Hammer Peak State ------------ > --- POWER ------------ Ion Engine > --- PROPULSION ------- Compact Wheel Compact Wheel > --- UTILITY ---------- Disposable Heat Sink Huge Storage Unit > --- WEAPON ----------- Riot Gun Spread Laser > --- INVENTORY -------- Light Ion Engine Subdweller Power Source Makeshift Power Source Improved Treads Improved Treads Improved Treads Wheel Wheel Wheel Improved Hover Unit Improved Hover Unit Improved Hover Unit Improved Hover Unit Heat Sink Disposable Heat Sink Small Storage Unit ECM Suite Medium Laser Spread Laser Grenade Launcher Plasma Cutter Hammer [Rating: 14] Favorites ----------- Power Ion Engine Engine Ion Engine Propulsion Compact Wheel Leg Aluminum Leg Wheel Compact Wheel Utility Huge Storage Unit Device Disposable Heat Sink Storage Huge Storage Unit Protection Light Armor Plating Weapon Assault Rifle Energy Gun Spread Laser Ballistic Gun Assault Rifle Ballistic Cannon Light Cannon Impact Weapon Hammer Build | -11 -10 -10 ------- Run | Yrd Mat Sub Slots Evolved . | . . . Power . | . . . Propulsion . | . . . Utility . | . . . Weapon . | . . . Parts Attached 21 | 8 5 8 Power 3 | 1 1 1 Engine 3 | 1 1 1 Core . | . . . Reactor . | . . . Propulsion 6 | 4 1 1 Treads . | . . . Leg 2 | 2 . . Wheel 4 | 2 1 1 Hover . | . . . Flight . | . . . Utility 4 | 1 2 1 Device 1 | . . 1 Storage 2 | 1 1 . Processor . | . . . Hackware . | . . . Protection 1 | . 1 . Artifact . | . . . Weapon 8 | 2 1 5 Energy Gun 4 | . 1 3 Energy Cannon . | . . . Ballistic Gun 2 | 2 . . Ballistic Cannon 1 | . . 1 Launcher . | . . . Special Weapon . | . . . Impact Weapon 1 | . . 1 Slashing Weapon . | . . . Piercing Weapon . | . . . Special Melee Weapon . | . . . Unidentified Prototypes . | . . . Parts Lost 9 | . 2 7 Power 2 | . 1 1 Propulsion 1 | . . 1 Utility 1 | . . 1 Weapon 5 | . 1 4 Highest Loss Streak 4 | . 1 4 To Critical Strikes . | . . . Average Backups 21 | 3 22 24 Power 1 | . 1 3 Propulsion 10 | 1 10 10 Utility 4 | . 4 4 Weapon 5 | . 6 5 Tool/Special . | . . . Unused Backups 22 | . 3 19 Power 3 | . . 3 Propulsion 12 | . 2 10 Utility 3 | . . 3 Weapon 3 | . 1 2 Tool/Special 1 | . . 1 Average Slot Usage (%) 96 | . 97 94 Engine 12 | . 11 13 Wheel 27 | . 27 27 Device 1 | . . 8 Storage 17 | . 18 14 Protection 8 | . 9 2 Energy Gun 9 | . 8 15 Ballistic Gun 16 | . 19 2 Ballistic Cannon 1 | . . 7 Peak Build Rating 14 | 6 11 14 Average Rating 10 | 4 10 11 On Entrance 5 | . 6 11 Naked Turns . | . . . Heaviest Build 93 | 12 93 93 Greatest Support 32 | 26 26 32 Greatest Overweight (x) 5 | . 3 5 Average Overweight (x) 2 | . 2 2 Largest Inventory Capacity 25 | 8 25 25 Average Capacity 23 | 7 24 25 Most Carried 25 | 6 25 25 Average Carried 22 | 3 22 24 Final Capacity 25 | 8 25 25 Final Carried 25 | 6 25 22 Class Distribution -------------------- 100% | Mutant Dominant Class ---------------- Mutant | -10/Materials Mutant | -10/Subcaves Resources | -11 -10 -10 ----------- Run | Yrd Mat Sub Matter Collected 557 | 276 247 34 Remotely . | . . . Salvage Created 386 | . 343 43 Parts 14 | . 11 3 Haulers Intercepted . | . . . Recyclers Shooed . | . . . Parts Field Recycled . | . . . Retrieved Matter . | . . . Parts Self-Destructed 4 | . . 4 Prevented . | . . . Kills | -11 -10 -10 ------- Run | Yrd Mat Sub Combat Hostiles Destroyed 9 | . 7 2 Guns 7 | . 6 1 Cannons 1 | . . 1 AOE 1 | . 1 . Classes Destroyed 3 | . 2 1 Watcher 2 | . 2 . Grunt 7 | . 7 . Subdweller 2 | . . 2 Best Kill Streak 2 | . 2 1 Combat Bots Only 2 | . 2 1 Max Kills in Single Turn 1 | . 1 1 Gunslinging . | . . . Exploded 1 | . 1 . Melee . | . . . Uniques/NPCs Destroyed . | . . . Combat | -11 -10 -10 -------- Run | Yrd Mat Sub Hostile Shots Fired 95 | . 57 38 Missed 23 | . 13 10 Hits 72 | . 44 28 Projectile 72 | . 44 28 Part Disruptions 2 | . 2 . Damage Taken 1203 | . 554 649 Core 257 | . 134 123 Absorbed by Shields . | . . . Core Remaining (%) 100 | 100 . . Volleys Fired 60 | . 37 23 Largest 2 | . 2 2 Hottest 130 | . 85 130 Shots Fired 113 | . 74 39 Gun 104 | . 74 30 Cannon 9 | . . 9 Launcher . | . . . Special . | . . . Kinetic 71 | . 61 10 Thermal 39 | . 13 26 Explosive . | . . . Electromagnetic 3 | . . 3 Robot Hit Streak 23 | . 8 23 Robot Miss Streak 5 | . 5 2 Penetration Max . | . . . Secondary Targets 2 | . 2 . Max Gunslinging Chain 1 | . 1 . Shots Hit Robots 84 | . 50 34 Core Hits 41 | . 29 12 Critical Kills . | . . . Critical Parts Destroyed . | . . . Critical Strikes . | . . . Melee Attacks 1 | . . 1 Impact 1 | . . 1 Slashing . | . . . Piercing . | . . . Sneak Attacks . | . . . Combat Hostiles . | . . . Follow-up Attacks . | . . . Damage Inflicted 834 | . 646 188 Guns 780 | . 646 134 Cannons 54 | . . 54 Explosions . | . . . Melee . | . . . Ramming . | . . . Kinetic 551 | . 484 67 Thermal 283 | . 162 121 Explosive . | . . . Electromagnetic . | . . . Impact . | . . . Slashing . | . . . Piercing . | . . . Highest Corruption 4 | . 4 4 Average Corruption 3 | . 2 4 Corruption Purged . | . . . Corruption Blocked . | . . . Effects 21 | . 14 7 Message Errors 4 | . 2 2 Matter Fused 3 | . 2 1 Heat Flow Errors 4 | . 4 . Energy Discharges 3 | . 2 1 Data Loss (minor) 3 | . 3 . Data Loss (major) 1 | . . 1 Misfires 3 | . 1 2 Overload Shots . | . . . Overflow Damage . | . . . Projectiles . | . . . Explosions . | . . . Melee . | . . . Knockbacks . | . . . Impact . | . . . Kinetic . | . . . Secondary . | . . . Self-Inflicted Damage . | . . . Shots . | . . . Rammed . | . . . Targets Rammed . | . . . Kicked . | . . . Crushed . | . . . Highest Temperature 272 | . 272 51 Average Temperature 69 | . 76 23 Received Heat Transfer 480 | . 312 168 Siege Activations . | . . . Martial Activations . | . . . Shielding Activations . | . . . Robots Disrupted . | . . . Combat Hostiles . | . . . Robots Corrupted . | . . . Combat Hostiles . | . . . Parts Fried . | . . . Impact Corruptions . | . . . Robots Melted . | . . . Combat Hostiles . | . . . Parts Melted . | . . . Heat Transferred 350 | . 205 145 Parts Sabotaged . | . . . Parts Stolen . | . . . Parts Stripped . | . . . Power Chain Reactions . | . . . Alert | -11 -10 -10 ------- Run | Yrd Mat Sub Maximum Alert Level . | . . . Low Security (%) 100 | 100 100 . Level 1 . | . . . Level 2 . | . . . Level 3 . | . . . Level 4 . | . . . Level 5 . | . . . High Security . | . . . Max Security . | . . . Peak Influence 76 | . 76 . Initial . | . . . Average 10 | . 10 . Influence Increases 199 | . 199 . Destroy 0b10 Robot/C 140 | . 140 . Destroy 0b10 Robot/NC 10 | . 10 . Destroy Leader 44 | . 44 . Successful Hack 5 | . 5 . Influence Decreases 199 | . 199 . Time Decay 189 | . 189 . Lost Part 10 | . 10 . Squads Dispatched 1 | . 1 . Investigation . | . . . Extermination . | . . . Reinforcement 1 | . 1 . Assault . | . . . Garrison . | . . . Intercept . | . . . Searches Triggered . | . . . Construction Impeded . | . . . Haulers Reinforced . | . . . Active Scanning Responses . | . . . Cargo Convoy Interrupts . | . . . Stealth | -11 -10 -10 --------- Run | Yrd Mat Sub Distress Signals . | . . . Communications Jammed . | . . . Distress Signals . | . . . Times Spotted 17 | . 14 3 Peak Tracking Total 2 | . 2 2 Tactical Retreats . | . . . Traps | -11 -10 -10 ------- Run | Yrd Mat Sub Traps Triggered 4 | . 3 1 Indirectly . | . . . Trap Hack Attempts . | . . . Triggered . | . . . Disarmed . | . . . Reprogrammed . | . . . Reused . | . . . Traps Extracted . | . . . Installed . | . . . Triggered . | . . . Machines | -11 -10 -10 ---------- Run | Yrd Mat Sub Machines Disabled . | . . . Max in Single Turn . | . . . Machines Repaired . | . . . Machines Dismantled . | . . . Machines Sabotaged . | . . . Overloaded Fab Kills . | . . . Hacking | -11 -10 -10 --------- Run | Yrd Mat Sub Machines Accessed 2 | . 2 . Terminals 2 | . 2 . Fabricators . | . . . Repair Stations . | . . . Recycling Units . | . . . Scanalyzers . | . . . Garrison Access . | . . . Total Hacks 5 | . 5 . Successful 1 | . 1 . Failed 4 | . 4 . Catastrophic . | . . . Database Lockouts . | . . . Manual 5 | . 5 . Terminals 5 | . 5 . Fabricators . | . . . Repair Stations . | . . . Recycling Units . | . . . Scanalyzers . | . . . Garrison Access . | . . . Terminal Hacks . | . . . Fabricator Hacks . | . . . Repair Station Hacks . | . . . Recycling Unit Hacks . | . . . Scanalyzer . | . . . Garrison Access Hacks . | . . . Unauthorized Hacks 1 | . 1 . Terminals 1 | . 1 . Botnet 1 | . 1 . Fabricators . | . . . Repair Stations . | . . . Recycling Units . | . . . Scanalyzers . | . . . Garrison Access . | . . . Data Cores Recovered . | . . . Used . | . . . Hacking Detections 2 | . 2 . Full Trace Events . | . . . Feedback Events . | . . . Feedback Blocked . | . . . Robot Schematics Acquired . | . . . Robots Built . | . . . Authchips . | . . . Time . | . . . Total Robot Build Rating . | . . . Part Schematics Acquired . | . . . Parts Built . | . . . Authchips . | . . . Time . | . . . Total Part Build Rating . | . . . Parts Repaired . | . . . Time . | . . . Parts Recycled . | . . . Recycled Matter . | . . . Retrieved Matter . | . . . Retrieved Components . | . . . Parts Scanalyzed . | . . . Part Schematics Acquired . | . . . Parts Damaged . | . . . Bothacking | -11 -10 -10 ------------ Run | Yrd Mat Sub Used RIF Installer . | . . . Robots Hacked . | . . . Non-combat . | . . . Combat . | . . . Robot Hacks Applied . | . . . Relay Couplers Released . | . . . Fabnet Peak Effective % . | . . . Robots Rewired . | . . . Allies Hacked . | . . . Hacks Repelled . | . . . Allies | -11 -10 -10 -------- Run | Yrd Mat Sub Total Allies . | . . . Largest Group . | . . . Highest-Rated Group . | . . . Highest-Rated Ally . | . . . Total Orders . | . . . Ally Attacks . | . . . Total Damage . | . . . Kills . | . . . Allies Corrupted . | . . . Allies Melted . | . . . Intel | -11 -10 -10 ------- Run | Yrd Mat Sub Active Infowar (turns) . | . . . Robot Analysis Total . | . . . Derelict Logs Recovered 1 | . . 1 Drone Launches . | . . . Drone Recoveries . | . . . Exploration | -11 -10 -10 ------------- Run | Yrd Mat Sub Turns Passed 1568 | 72 1199 297 Spaces Moved 756 | 50 545 161 Core 4 | 4 . . Treads . | . . . Legs 42 | 27 15 . Wheels 710 | 19 530 161 Hover . | . . . Flight . | . . . Fastest Speed 50 | 50 120 130 Average Speed 131 | 103 134 132 Slowest Speed 175 | 120 135 175 Overloaded Moves . | . . . Propulsion Burnouts . | . . . Robots Hopped . | . . . Potential Cave-ins . | . . . Cave-ins Triggered . | . . . Exploration Rate (%) 33 | 4 83 14 Regions Visited 2 Branch Regions 1 Pre-discovered Areas 1 | . . 1 Known Exits Taken . | . . . Unknown Exits Taken 2 | 1 1 . Scrap Searched 3 | . . 3 Spaces Dug . | . . . Terrain Destroyed . | . . . Melee . | . . . Projectile . | . . . AOE . | . . . Terrain Rammed . | . . . Walls Destroyed . | . . . Machines Disabled . | . . . Actions | -11 -10 -10 --------- Run | Yrd Mat Sub Total 1211 | 69 940 202 Wait 326 | . 320 6 Move 754 | 49 544 161 Hop . | . . . Pick Up 41 | 12 26 3 Fast Attach 1 | . 1 . Attach 14 | 6 2 6 Detach . | . . . Swap 8 | 2 4 2 Drop 6 | . 6 . Fire 60 | . 37 23 Melee 1 | . . 1 Ram . | . . . Kick . | . . . Crush . | . . . Escape Stasis . | . . . Rewire . | . . . Trap . | . . . Miscellaneous . | . . . Route ------- -11/Scrapyard -10/Materials (discovered 5 exits: [*Mat x3] / [*Min] / [*Sub]) -10/Subcaves History --------- Turn | Location | Event 27 | -11/Scrapyard | Discovered new exit (range 16) 73 | -11/Scrapyard | Entered Materials 89 | -10/Materials | Discovered new exit (range 16) 200 | -10/Materials | Discovered new exit (range 16) 271 | -10/Materials | Discovered new exit (range 13) 307 | -10/Materials | Build established: Mutant 749 | -10/Materials | Core integrity fell below 50% 923 | -10/Materials | Discovered new exit (range 3) 1253 | -10/Materials | Discovered new exit (range 5) 1272 | -10/Materials | Entered Subcaves 1273 | -10/Subcaves | Approached by a straggling Scientist 1277 | -10/Subcaves | Learned location of Mines (-8) 1355 | -10/Subcaves | Disturbed a concealed Subdweller 1558 | -10/Subcaves | Core integrity fell below 20% 1569 | -10/Subcaves | Destroyed by FY-0A8(R) with Subdweller Laser Last Messages --------------- 01449_ System corrupted: Matter fused (-5). 01470_ System corrupted: Energy discharge (-67). ZM-KSN(c): "I think it's somewhere north of here" 01488_ System corrupted: FCS attempts to trigger Lgt. Cannon. 01488_ System corrupted: Lgt. Cannon misfires. 01491_ TE-DKL(u) tweaks Twisted Machinery. 01514_ System corrupted: Substantial component data lost. 01515_ TE-DKL(u) builds Twisted Machinery. 01525_ Ion Engine destroyed. 01526_ 41-ASG(R) destroyed. 01526_ TE-DKL(u) builds Twisted Machinery. ZM-KSN(c): "I think it's somewhere northeast of here" 01531_ Lgt. Cannon destroyed. 01543_ Spread Laser destroyed. 01547_ TE-DKL(u) builds Twisted Machinery. 01563_ Riot Gun destroyed. Map ----- +----------------------------------------------------+ | ??????????????????????????????????????????? | | ??????????????????????????????????????????? | | ??????????????????????????????????????????? | | ??????????????????????????????????????????? | | ??????????????????????????????????????????? | | ??????????????????????????????????????????? | | ??????????????????????????????????????????? | | ??????????????????????????????????????????? | | ??????????????????????????????????????????? | | ??????????????????????????????????????????? | | ??????????????????????????????????????????? | | ??????????????????????????????????????????? | | ??????????????????????????????????????????? | | ??????????????????????????????????????????? | | ??????????????????????????????????????????? | | ??????????????????????????????????????????? | | ????????????????? ??????????????????????? | | ????????????????? ??????????????????????? | | ????????????????? ??????????????????????? | | ????????????????? ##?????????????????????? | | ?????????????????" #?????????????????????? | | ????????????????##" #?????????????????????? | | ????????????????#"""##????????????????????? | | ???????????????##""""#????????????????????? | | ???????????????#"""R"#????????????????????? | | ???????????????#%"@u"#????????????????????? | | ???????????????##&"&"#????????????????????? | | ????????????????#c ##????????????????????? | | ????????????????# ##????????????????????? | | ????????????????## #????????????????????? | | ?????????????????## #????????????????????? | | ?????????????????## #????????????????????? | | ????????????????## ##????????????????????? | | ????????????????# ##????????????????????? | | ????????????????## ##???????????????????? | | ?????????????????# #???????????????????? | | ?????????????????# ##???????????????????? | | ?????????????????# #????????????????????? | | ????????????????## #????????????????????? | | ????????????????# ##????????????????????? | | ????????????????## ##????????????????????? | | ?????????????????## ##???????????????????? | | ??????????????????# #???????????????????? | | ??????????????????## ##??????????????????? | | ???????????????????## ##?????????????????? | | ???????????????????## ########??????????? | | ?????????????????### #??????????? | | ?????????????????# #??????????? | | ????????????????# ### #??????????? | | ????????????????# ### ##??????????? | +----------------------------------------------------+ Best States ------------- Heat Dissipation 25 Coolant Potential 50 Energy Generation 10 Energy Capacity 250 Matter Stores 300 Matter Capacity 300 Sight Range 16 Terrain Scan Density 10 Armor Coverage 150 Evasion (%) 55 Item Schematics ----------------- None Robot Schematics ------------------ None Fabricated ------------ Nothing Repaired ---------- Nothing Alien Tech Used ----------------- None Achievements -------------- None Challenges ------------ None Game ------ Seed AngularRecyclingMaul Manual? 0 Play Time 00:19:36 Cumulative 276.2 hours Start 2025.09.03 @ 21:13:45 End 2025.09.03 @ 21:35:10 Sessions 1 Manual Loads 0 Difficulty Rogue Special Mode None Game No. 430 Rogue 430 Adventurer 0 Explorer 0 Win Type - Total 1 Types 1/0/0/0/0/0/0/0/0/0 Lore% 64 Gallery% 63 Achievement% 44 Wizard Run 0 Options --------- Layout 1 ASCII 0 Keyboard 0 Movement Mouse Keybinds 0 Fullscreen 2 Font 24/Smallcaps Map View 50x35 Zoom Use 0% Tactical HUD 1 Map Filters NONE Filters NONE Steam X RUN: b09b34a3-c315-4625-8781-f54d106a7dfd